bitfinex/quotes_ETHUSD_20230701
["timestamp","ask_amount","ask_price","bid_price","bid_amount"]
[1688197873690,10.558344,1917.0,1916.6,5.21756]
[1688197873896,0.00412114,1916.9,1916.6,5.21756]
[1688197875163,5.22089114,1916.9,1916.6,10.43513]
[1688197875470,10.43766114,1916.9,1916.6,10.43513]
[1688197876296,13.04603114,1916.9,1916.6,5.21756]
[1688197876599,13.04603114,1916.9,1916.5,10.43542]
[1688197876600,15.20321428,1916.9,1916.5,10.43542]
[1688197876962,5.22105114,1916.9,1916.5,10.43553]
[1688197877988,10.43798114,1916.9,1916.5,10.43553]
[1688197879985,5.22105114,1916.9,1916.5,13.04445]
[1688197881293,10.43780114,1916.9,1916.5,13.04445]
[1688197882601,5.22087114,1916.9,1916.5,13.04445]
[1688197885275,0.00412114,1916.9,1916.5,14.348895]
[1688197886718,0.00412114,1916.9,1916.5,11.81857684]
[1688197886919,0.00412114,1916.9,1916.5,17.03641684]
[1688197887628,0.00412114,1916.9,1916.6,2.68752184]
[1688197887835,0.00412114,1916.9,1916.8,13.04255]
[1688197888037,0.00412114,1916.9,1916.8,12.181259]
[1688197888336,0.00412114,1916.9,1916.8,14.789769]
[1688197888825,4.0648,1917.2,1916.8,14.789769]
[1688197889801,0.00396835,1917.1,1916.8,14.789769]
[1688197891011,4.0648,1917.2,1916.8,14.789769]
[1688197891196,2.2313,1917.2,1916.8,14.789769]
[1688197891849,0.0039712,1917.1,1916.8,14.789769]
[1688197892000,0.0039712,1917.1,1916.9,1.4789769]
[1688197892200,0.0039712,1917.1,1917.0,10.43296]
[1688197893042,1.749,1917.3,1917.0,13.0412]
[1688197893804,0.00398493,1917.2,1917.0,13.0412]
[1688197897422,5.21993493,1917.2,1916.9,5.21661]
[1688197897733,6.57381142,1917.2,1917.0,10.43291]
[1688197900051,11.78976142,1917.2,1916.9,5.21656]
[1688197900209,11.78976142,1917.2,1917.0,5.21646]
[1688197900403,6.57381142,1917.2,1917.0,5.21646]
[1688197900909,6.57381142,1917.2,1917.0,10.43294]
[1688197902449,1.35786142,1917.2,1917.0,10.43294]
[1688197903465,1.35786142,1917.2,1917.0,13.04118]
[1688197903605,1.35786142,1917.2,1917.0,5.21646]
[1688197903606,2.71186142,1917.2,1917.0,5.21646]
[1688197903811,0.27118614,1917.1,1917.0,10.43294]
[1688197904105,0.27118614,1917.1,1917.0,13.04118]
[1688197904340,0.00398493,1917.2,1917.0,13.04118]
[1688197909041,13.43021663,1917.3,1917.0,13.04118]
[1688197909821,0.00384728,1917.2,1917.0,13.04118]
[1688197910459,0.00384728,1917.2,1917.0,10.43294]
[1688197911018,5.21978728,1917.2,1917.0,10.43294]
[1688197911441,0.00384728,1917.2,1917.0,5.21646]
[1688197911936,0.00384728,1917.2,1917.0,10.43294]
[1688197914134,8.16826391,1917.3,1917.0,10.43294]
[1688197914334,9.46077574,1917.3,1917.0,10.43294]
[1688197914882,0.0036993,1917.2,1917.0,10.43294]
[1688197915071,0.0036993,1917.2,1917.0,13.04118]
[1688197918870,0.0036993,1917.2,1917.0,10.43294]
[1688197919210,0.0036993,1917.2,1917.0,13.04118]
[1688197922106,3.49116434,1917.4,1917.0,13.04118]
[1688197922315,7.23015661,1917.4,1917.0,13.04118]
[1688197922872,0.00370745,1917.3,1917.0,13.04118]
[1688197923783,7.23015661,1917.4,1917.0,13.04118]
[1688197924900,0.00370745,1917.3,1917.0,13.04118]
[1688197925935,7.23015661,1917.4,1917.0,13.04118]
[1688197926838,0.00370745,1917.3,1917.0,13.04118]
[1688197928026,12.44557661,1917.4,1917.0,13.04118]
[1688197928244,5.2860795,1917.3,1917.0,5.21646]
[1688197928405,5.21593,1917.2,1917.0,10.43294]
[1688197928766,17.4685795,1917.3,1917.0,10.43294]
[1688197928936,0.00369116,1917.1,1917.0,10.43294]
[1688197929913,17.4685795,1917.3,1917.0,10.43294]
[1688197931043,0.0036993,1917.2,1917.0,10.43294]
[1688197931413,0.0036993,1917.2,1917.0,5.21646]
[1688197931996,5.2196893,1917.2,1917.0,5.21646]
[1688197933040,0.0036993,1917.2,1917.0,14.345311]
[1688197933826,9.10606434,1917.4,1917.0,14.345311]
[1688197934031,14.32164434,1917.4,1917.0,13.04118]
[1688197934945,0.00370745,1917.3,1917.0,13.04118]
[1688197935840,14.32164434,1917.4,1917.0,13.04118]
[1688197936814,0.00370186,1917.3,1917.0,13.04118]
[1688197937832,14.32164434,1917.4,1917.0,13.04118]
[1688197938830,0.00370186,1917.3,1917.0,13.04118]
[1688197939033,0.00370186,1917.3,1917.0,14.606134]
[1688197939911,15.66364434,1917.4,1917.0,14.606134]
[1688197941047,5.21937745,1917.3,1917.0,14.606134]
[1688197942938,5.21937745,1917.3,1917.0,13.04118]
[1688197947857,10.43504745,1917.3,1917.0,13.04118]
[1688197949047,10.43504745,1917.3,1917.0,10.43294]
[1688197952758,13.04287745,1917.3,1916.8,5.21683]
[1688197952938,13.04287745,1917.3,1916.8,13.04236]
[1688197952939,5.21626,1917.1,1916.8,13.04236]
[1688197953740,14.46628,1917.2,1916.8,13.04236]
[1688197953950,0.00368302,1917.0,1916.8,13.04236]
[1688197954963,14.46628,1917.2,1916.8,13.04236]
[1688197956077,9.25015,1917.2,1916.8,13.04236]
[1688197956241,9.25015,1917.2,1916.8,14.635256]
[1688197956956,0.00369428,1917.1,1916.8,14.635256]
[1688197957872,9.25015,1917.2,1916.8,14.635256]
[1688197958840,0.00369428,1917.1,1916.8,14.635256]
[1688197959859,9.25015,1917.2,1916.8,14.635256]
[1688197960930,0.00369428,1917.1,1916.8,14.635256]
[1688197961934,9.25015,1917.2,1916.8,14.635256]
[1688197962568,0.41868965,1917.4,1916.9,1.4635256]
[1688197962769,1.7652,1917.3,1917.0,13.04085]
[1688197962970,0.00369428,1917.1,1917.0,13.04085]
[1688197963841,6.98088,1917.3,1917.0,13.04085]
[1688197964876,0.00370243,1917.2,1917.0,13.04085]
[1688197965980,0.00370243,1917.2,1917.0,12.910942]
[1688197974373,0.00370243,1917.2,1917.0,10.43268]
[1688197974579,5.21970243,1917.2,1917.0,5.21634]
[1688197974781,5.21970243,1917.2,1917.0,10.43282]
[1688197976672,0.00370243,1917.2,1917.0,10.43282]
[1688197977385,6.43969267,1917.2,1917.0,5.21634]
[1688197977695,5.21965243,1917.2,1917.0,5.21634]
[1688197978787,5.21965243,1917.2,1917.0,10.43282]
[1688197985177,0.00370243,1917.2,1917.0,10.43282]
[1688197987711,0.00370243,1917.2,1917.0,13.04106]
[1688197987888,0.00370243,1917.2,1917.1,2.68752184]
[1688197988094,0.00370243,1917.2,1917.1,18.48794802]
[1688197988876,3.957,1917.9,1917.1,20.48304802]
[1688197989109,3.957,1917.9,1917.3,1.354]
[1688197989282,3.957,1917.9,1917.4,13.03792]
[1688197989876,0.00329773,1917.8,1917.4,13.03792]
[1688197991015,3.957,1917.9,1917.4,13.03792]
[1688197991319,5.39847112,1917.9,1917.4,13.03792]
[1688197992011,0.00329773,1917.8,1917.4,13.03792]
[1688197992821,5.39847112,1917.9,1917.4,13.03792]
[1688197993196,4.37700422,1917.9,1917.4,13.03792]
[1688197993830,0.00329773,1917.8,1917.4,13.03792]
[1688197994936,4.37700422,1917.9,1917.4,13.03792]
[1688197995610,1.043809,1918.0,1917.4,13.03792]
[1688197995812,30.03,1918.2,1917.7,15.64364]
[1688197996025,0.00329773,1917.8,1917.7,15.64364]
[1688197996792,3.9468,1918.1,1917.7,15.64364]
[1688197997226,4.15926344,1918.2,1917.7,15.64364]
[1688197997227,1.4717416,1918.2,1917.7,15.64364]
[1688197997442,30.03,1918.5,1917.8,0.5]
[1688197997443,31.382,1918.5,1917.8,0.5]
[1688197997594,5.82572184,1918.4,1918.0,13.03432]
[1688197997926,2.69074499,1918.4,1918.0,13.03432]
[1688197999224,0.00322315,1918.4,1918.0,13.03432]
[1688198003756,0.00322315,1918.4,1918.0,14.88832]
[1688198004113,0.00322315,1918.4,1918.2,1.348]
[1688198004416,0.00322315,1918.4,1918.3,15.63882]
[1688198004915,3.16135,1918.7,1918.3,15.63882]
[1688198005251,0.050072,1918.8,1918.3,18.12792024]
[1688198006062,0.00311947,1918.7,1918.5,20.8496]
[1688198011164,0.00311947,1918.7,1918.5,15.6372]
[1688198015458,0.00311947,1918.7,1918.5,20.17272184]
[1688198015763,0.00311947,1918.7,1918.5,16.1372]
[1688198015933,0.050072,1918.8,1918.7,15.63558]
[1688198017026,0.05307813,1918.8,1918.7,15.63558]
[1688198021351,0.05307813,1918.8,1918.7,13.02965]
[1688198023132,0.05307813,1918.8,1918.1,2.59752987]
[1688198023334,0.05307813,1918.8,1918.5,5.21222]
[1688198023335,11.83472247,1918.8,1918.5,5.21222]
[1688198023636,1.18347225,1918.7,1918.5,13.03082]
[1688198023862,0.002998,1918.7,1918.5,13.03082]
[1688198042389,0.002998,1918.7,1918.6,2.68752184]
[1688198042696,0.002998,1918.7,1918.6,16.19784184]
[1688198042894,0.002998,1918.7,1918.6,16.69784184]
[1688198043059,0.002998,1918.7,1918.6,19.83326802]
[1688198043860,0.050072,1918.8,1918.6,19.83326802]
[1688198044067,0.050072,1918.8,1918.7,3.16752184]
[1688198044388,0.050072,1918.8,1918.7,13.50965]
[1688198046901,0.050072,1918.8,1918.7,13.02965]
[1688198047898,0.05285252,1918.8,1918.7,13.02965]
[1688198048116,2.74037436,1918.8,1918.4,2.6063]
[1688198048301,0.27403744,1918.7,1918.4,7.81897]
[1688198048457,0.27403744,1918.7,1918.4,13.03164]
[1688198048660,0.05285252,1918.8,1918.4,13.03164]
[1688198048964,0.00276426,1918.6,1918.4,13.03164]
[1688198049562,1.20551826,1918.7,1918.4,13.03164]
[1688198049779,1.404072,1918.8,1918.4,13.03164]
[1688198050056,0.00287944,1918.6,1918.4,13.03164]
[1688198051106,1.404072,1918.8,1918.4,13.03164]
[1688198051904,0.00288825,1918.7,1918.4,13.03164]
[1688198053868,0.050072,1918.8,1918.4,13.03164]
[1688198054075,0.050072,1918.8,1918.4,14.595447]
[1688198068301,0.050072,1918.8,1918.4,13.03164]
[1688198068502,2.165972,1918.8,1918.4,13.03164]
[1688198071019,3.888072,1918.8,1918.4,13.03164]
[1688198073027,5.242072,1918.8,1918.4,13.03164]
[1688198073353,15.665292,1918.8,1918.4,13.03167]
[1688198073573,0.5242072,1918.7,1918.4,13.03167]
[1688198074252,10.453682,1918.8,1918.4,13.03167]
[1688198074957,5.242072,1918.8,1918.4,13.03167]
[1688198077225,1.354,1918.5,1918.2,5.21313]
[1688198077422,1.354,1918.5,1918.2,10.42626]
[1688198078050,1.8567,1918.6,1918.2,13.03287]
[1688198078353,1.354,1918.5,1918.2,13.03287]
[1688198079373,3.2107,1918.6,1918.2,13.03287]
[1688198079574,1.8567,1918.6,1918.2,13.03287]
[1688198081581,7.06883,1918.6,1918.2,13.03287]
[1688198081763,1.8567,1918.6,1918.2,13.03287]
[1688198081955,1.8567,1918.6,1918.2,14.76303]
[1688198082962,1.37046434,1918.7,1918.2,14.76303]
[1688198084266,0.01646434,1918.7,1918.2,14.76303]
[1688198086064,0.01646434,1918.7,1918.2,14.644255]
[1688198090579,5.22833434,1918.7,1918.2,14.644255]
[1688198093083,0.050072,1918.8,1918.3,4.15194734]
[1688198093284,0.050072,1918.8,1918.4,16.99167]
[1688198093455,0.050072,1918.8,1918.5,3.16752184]
[1688198093656,0.050072,1918.8,1918.6,13.03032]
[1688198098883,0.050072,1918.8,1918.7,15.71717184]
[1688198099059,0.050072,1918.8,1918.7,18.02949502]
[1688198100597,0.050072,1918.8,1918.7,10.42372]
[1688198101614,0.050072,1918.8,1918.7,13.02965]
[1688198108029,0.050072,1918.8,1918.7,20.92903184]
[1688198108195,0.050072,1918.8,1918.7,21.40903184]
[1688198108595,0.050072,1918.8,1918.7,21.90903184]
[1688198108801,0.1,1919.2,1918.7,34.43536002]
[1688198109123,0.1,1919.2,1918.9,20.84504]
[1688198109322,0.1,1919.2,1919.1,15.6323]
[1688198109725,0.1,1919.2,1919.1,16.1123]
[1688198112240,0.1,1919.2,1919.1,15.6323]
[1688198112559,0.1,1919.2,1919.1,13.02692]
[1688198115354,0.1,1919.2,1919.1,18.23769]
[1688198115725,0.1,1919.2,1919.1,20.322]
[1688198117850,0.1,1919.2,1919.1,20.802]
[1688198119453,0.1,1919.2,1919.1,20.322]
[1688198124299,0.1,1919.2,1919.1,18.23769]
[1688198125602,0.1,1919.2,1919.1,13.02692]
[1688198126801,0.1,1919.2,1919.1,10.42154]
[1688198126969,0.1,1919.2,1919.1,13.02692]
[1688198131000,0.1,1919.2,1919.1,18.23769]
[1688198131217,0.11646434,1919.3,1919.1,13.02692]
[1688198131218,0.10823248,1919.3,1919.1,13.02692]
[1688198131576,0.09176814,1919.3,1919.1,13.02692]
[1688198132028,0.00341425,1919.2,1919.1,13.02692]
[1688198139194,0.00341425,1919.2,1919.1,14.590154]
[1688198144375,0.00341425,1919.2,1919.1,13.02692]
[1688198147045,0.00341425,1919.2,1919.1,10.42154]
[1688198148007,0.00341425,1919.2,1919.1,15.71444184]
[1688198148282,0.00341425,1919.2,1919.1,16.19444184]
[1688198148647,0.00341425,1919.2,1919.1,21.67844184]
[1688198148849,0.00341425,1919.2,1919.1,24.67792802]
[1688198149079,0.1,1919.4,1919.1,28.19892802]
[1688198149283,0.00386124,1919.8,1919.6,0.5]
[1688198149482,0.00386124,1919.8,1919.7,25.35808184]
[1688198150278,0.208465,1920.4,1919.9,0.5]
[1688198150492,0.1,1920.7,1920.0,25.35483184]
[1688198150656,0.1,1920.7,1920.0,20.04446318]
[1688198150862,0.1,1920.7,1920.0,18.69046318]
[1688198151092,0.208449,1920.5,1920.0,18.69046318]
[1688198151293,0.208449,1920.5,1920.0,18.21046318]
[1688198151793,0.208449,1920.5,1920.2,0.5]
[1688198151994,0.1,1920.7,1920.2,0.5]
[1688198151995,0.1,1920.7,1920.4,1.354]
[1688198152169,0.1,1920.7,1920.5,18.78842184]
[1688198152369,0.1,1920.7,1920.5,16.1009]
[1688198153192,0.00307569,1920.6,1920.5,16.1009]
[1688198153700,0.00307569,1920.6,1920.5,20.14242184]
[1688198154063,0.1,1920.7,1920.5,20.14242184]
[1688198154285,0.1,1920.7,1920.6,6.05576402]
[1688198154479,0.1,1920.7,1920.6,19.55251402]
[1688198154898,0.10306714,1920.7,1920.6,19.55251402]
[1688198157200,0.10306714,1920.7,1920.6,15.51099218]
[1688198157505,0.10306714,1920.7,1920.6,13.49675]
[1688198160688,0.10306714,1920.7,1920.6,13.01675]
[1688198160878,0.10306714,1920.7,1920.6,10.4134]
[1688198161281,0.10306714,1920.7,1920.6,13.01675]
[1688198162307,0.10306714,1920.7,1920.6,13.49675]
[1688198162508,0.10306714,1920.7,1920.6,15.106763]
[1688198162696,0.10306714,1920.7,1920.6,13.01675]
[1688198164694,0.10306714,1920.7,1920.6,13.49675]
[1688198165472,0.10306714,1920.7,1920.6,13.01675]
[1688198166808,2.30306714,1920.8,1920.6,13.01675]
[1688198167002,0.00307268,1920.7,1920.6,13.01675]
[1688198168394,0.00307268,1920.7,1920.5,2.60338]
[1688198168395,5.20950268,1920.7,1920.5,5.20689]
[1688198168594,0.52095027,1920.6,1920.5,10.41365]
[1688198168882,0.00294665,1920.6,1920.5,10.41365]
[1688198169087,0.00294665,1920.6,1920.5,5.20676]
[1688198169314,0.00294665,1920.6,1920.5,10.41373]
[1688198169904,10.41301,1920.7,1920.5,10.41373]
[1688198170103,5.20646,1920.7,1920.5,10.41373]
[1688198170303,1.40678371,1920.7,1920.5,10.41373]
[1688198170505,2.75178371,1920.7,1920.5,10.41373]
[1688198171207,2.75178371,1920.7,1920.5,5.20676]
[1688198171789,7.97471805,1920.7,1920.5,5.20676]
[1688198172416,13.18118805,1920.7,1920.4,5.20708]
[1688198172580,1.3181188,1920.6,1920.3,5.20735]
[1688198172787,5.20697,1920.5,1920.3,10.41474]
[1688198173092,5.20990859,1920.5,1920.3,10.41474]
[1688198173297,0.00293859,1920.5,1920.3,10.41474]
[1688198175518,10.41691859,1920.5,1920.3,5.20735]
[1688198175719,11.85434745,1920.5,1920.2,10.41533]
[1688198176224,10.41691859,1920.5,1920.2,10.41533]
[1688198176921,10.41691859,1920.5,1919.8,1.854]
[1688198177226,13.02039859,1920.5,1919.8,5.20869]
[1688198177388,13.02039859,1920.5,1919.8,10.41756]
[1688198177588,15.70792043,1920.5,1919.8,10.41756]
[1688198177810,1.57079204,1920.4,1919.8,13.02199]
[1688198178143,10.41527,1920.3,1919.8,13.02199]
[1688198178340,5.20741,1920.4,1919.9,2.68752184]
[1688198178626,10.41477,1920.4,1920.0,13.02047]
[1688198178823,15.65588859,1920.5,1920.0,10.41638]
[1688198178986,0.00291139,1920.3,1920.0,13.02054]
[1688198179593,1.35691139,1920.3,1920.0,13.02054]
[1688198180023,0.00291139,1920.3,1920.1,0.48]
[1688198180348,0.00291139,1920.3,1920.2,13.01947]
[1688198180921,1.354,1920.6,1920.2,13.01947]
[1688198181122,3.225774,1920.6,1920.2,13.01947]
[1688198181743,2.3,1920.3,1920.2,13.01947]
[1688198182895,2.30292247,1920.3,1920.2,13.01947]
[1688198187133,2.30292247,1920.3,1920.2,13.49947]
[1688198188425,1.354,1920.6,1920.2,22.17099184]
[1688198188632,1.354,1920.7,1920.3,5.38462102]
[1688198188830,1.3365298,1921.1,1920.4,22.18275]
[1688198189124,6.5418798,1921.1,1920.5,0.48]
[1688198189332,6.5418798,1921.1,1920.6,13.01623]
[1688198189530,2.54206858,1921.1,1920.6,13.01623]
[1688198189725,7.74746858,1921.1,1920.6,13.01623]
[1688198189925,0.00381863,1921.0,1920.6,13.01623]
[1688198191954,2.30381863,1921.0,1920.6,13.01623]
[1688198193561,3.65781863,1921.0,1920.6,13.01623]
[1688198193876,0.36578186,1920.9,1920.6,13.01623]
[1688198194062,1.35781863,1921.0,1920.6,13.01623]
[1688198196736,0.00381863,1921.0,1920.6,13.01623]
[1688198200462,0.12802359,1921.8,1921.2,0.5]
[1688198200669,5.0,1922.0,1921.5,28.98856184]
[1688198200830,5.0,1922.0,1921.5,34.0711623]
[1688198201031,5.0,1922.0,1921.6,1.65374428]
[1688198201251,0.050072,1922.6,1921.9,3.18752184]
[1688198201452,0.050072,1922.6,1922.2,5.20223]
[1688198201453,5.251352,1922.6,1922.2,5.20223]
[1688198201662,14.094789,1922.6,1922.2,10.4046]
[1688198201863,6.6110489,1922.5,1922.2,10.4046]
[1688198202361,11.8126189,1922.5,1922.2,5.20223]
[1688198202565,11.8126189,1922.5,1922.1,5.20249]
[1688198202760,14.4133989,1922.5,1922.1,5.20249]
[1688198203066,15.7673989,1922.5,1922.1,5.20249]
[1688198203263,1.57673989,1922.4,1922.1,5.20249]
[1688198203446,5.2021,1922.3,1922.1,5.20249]
[1688198204370,10.4042,1922.3,1922.1,5.20249]
[1688198205270,5.2021,1922.3,1922.1,5.20249]
[1688198206164,5.2021,1922.3,1922.1,5.072616]
[1688198210243,10.4042,1922.3,1922.1,5.072616]
[1688198210775,11.86238599,1922.3,1922.0,10.40545]
[1688198214146,14.46343599,1922.3,1922.0,5.20266]
[1688198214352,14.46343599,1922.3,1921.4,5.20443]
[1688198214353,5.68752184,1922.2,1921.4,5.20443]
[1688198214655,5.68752184,1922.2,1920.9,0.5]
[1688198214656,13.00755,1922.0,1920.9,0.5]
[1688198214854,13.00755,1922.0,1921.1,10.41039]
[1688198215067,3.0,1921.9,1921.1,7.89269184]
[1688198215374,10.40766,1921.7,1921.1,2.68752184]
[1688198215574,5.20442,1921.5,1921.0,5.20557]
[1688198215776,5.20442,1921.5,1921.0,7.89309184]
[1688198216367,13.01097,1921.5,1920.7,0.13139714]
[1688198216574,1.886,1921.3,1920.8,2.68752184]
[1688198216763,1.886,1921.3,1920.8,3.99754202]
[1688198216764,10.41042,1921.2,1920.8,3.99754202]
[1688198217143,10.41042,1921.2,1920.8,1.31002018]
[1688198217367,15.64456,1921.2,1920.7,5.20627]
[1688198217552,15.64456,1921.2,1920.7,10.4128]
[1688198217760,17.53556,1921.2,1920.4,0.42626986]
[1688198217956,1.897,1921.1,1920.5,7.89432184]
[1688198218168,13.01455,1921.0,1920.5,7.89432184]
[1688198218475,13.01455,1921.0,1920.5,1.31015018]
[1688198218667,13.01455,1921.0,1920.4,5.20718]
[1688198218867,13.01455,1921.0,1920.4,7.89470184]
[1688198219068,13.01455,1921.0,1920.4,13.10194184]
[1688198219791,13.01455,1921.0,1920.4,15.70556184]
[1688198219995,13.01455,1921.0,1920.5,5.68679]
[1688198220147,13.01455,1921.0,1920.5,12.51227118]
[1688198220988,13.01455,1921.0,1920.5,2.09851118]
[1688198221158,13.01455,1921.0,1920.5,0.48]
[1688198221348,13.01455,1921.0,1920.5,5.68696]
[1688198222049,13.01455,1921.0,1920.5,10.89393]
[1688198223458,13.01215,1921.0,1920.5,10.89393]
[1688198224372,13.01215,1921.0,1920.5,0.48]
[1688198224582,3.198215,1920.9,1920.4,0.0164709]
[1688198224762,13.01572,1920.8,1920.4,0.4964709]
[1688198225477,13.01572,1920.8,1920.4,0.0164709]
[1688198225694,13.01572,1920.8,1920.4,5.2237009]
[1688198225997,15.66582,1920.8,1920.4,5.2237009]
[1688198226303,15.66582,1920.8,1920.4,0.0164709]
[1688198227165,15.66582,1920.8,1920.4,5.2236609]
[1688198227566,15.66582,1920.8,1920.4,0.0164709]
[1688198227762,15.66582,1920.8,1920.4,5.2236209]
[1688198228412,15.66582,1920.8,1920.4,10.4308609]
[1688198229793,15.66576,1920.8,1920.4,10.4308609]
[1688198230789,15.66576,1920.8,1920.4,5.2236209]
[1688198230962,15.66576,1920.8,1920.4,0.0164709]
[1688198231175,15.66576,1920.8,1920.4,5.2236709]
[1688198231398,15.66576,1920.8,1920.4,0.0164709]
[1688198232659,15.66576,1920.8,1920.4,5.2236909]
[1688198237281,15.66576,1920.8,1920.2,5.20764]
[1688198237487,15.66576,1920.8,1920.3,0.48]
[1688198237688,15.66576,1920.8,1920.3,5.68745]
[1688198238313,2.6501,1920.8,1920.4,2.68752184]
[1688198238620,34.072001,1921.3,1920.5,13.49732]
[1688198238621,33.03,1921.3,1920.5,13.49732]
[1688198238822,30.03,1921.3,1920.6,4.03725384]
[1688198239006,30.03,1921.3,1920.8,13.01532]
[1688198239208,37.92696,1921.6,1920.9,3.16752184]
[1688198239417,37.92696,1921.6,1921.1,5.20532]
[1688198239608,37.92696,1921.6,1921.2,0.48]
[1688198239919,19.74199594,1921.6,1921.2,0.48]
[1688198240124,15.70309,1921.6,1921.1,0.48]
[1688198240296,3.0,1921.5,1921.1,0.48]
[1688198240653,5.20455,1921.4,1921.1,0.48]
[1688198241316,2.6929,1921.6,1921.2,2.68752184]
[1688198241520,2.6929,1921.6,1921.3,10.8895]
[1688198241723,2.6929,1921.6,1921.3,12.50744618]
[1688198245027,2.6929,1921.6,1921.3,15.10984618]
[1688198251119,2.6929,1921.6,1921.3,13.0119]
[1688198251408,15.7029,1921.6,1921.3,5.20477]
[1688198251601,7.89689,1921.6,1921.3,10.40957]
[1688198251902,2.6929,1921.6,1921.3,13.01197]
[1688198257058,3.0,1921.9,1921.4,2.68752184]
[1688198257360,2.643,1922.0,1921.5,16.09239]
[1688198257560,8.20342,1921.9,1921.5,10.40826]
[1688198257770,9.548207,1921.9,1921.5,13.01039]
[1688198261057,4.344787,1921.9,1921.5,13.01039]
[1688198262457,9.548027,1921.9,1921.5,13.01039]
[1688198264146,14.751267,1921.9,1921.5,13.01039]
[1688198265941,16.107267,1921.9,1921.5,13.01039]
[1688198266376,1.6107267,1921.8,1921.5,13.01039]
[1688198270604,3.0,1921.9,1921.5,15.69791184]
[1688198270766,2.643,1922.0,1921.7,13.00917]
[1688198280022,13.04884,1922.0,1921.7,10.40739]
[1688198280571,7.79592,1922.0,1921.7,10.40739]
[1688198281175,12.99883,1922.0,1921.7,10.40739]
[1688198281376,16.346445,1922.0,1921.7,10.40739]
[1688198281614,16.246445,1922.0,1921.7,10.40739]
[1688198281781,16.246445,1922.0,1921.7,5.20367]
[1688198283406,18.847895,1922.0,1921.7,5.20361]
[1688198283607,3.0,1921.9,1921.5,5.20423]
[1688198283801,15.2914595,1921.9,1921.5,10.40846]
[1688198284712,16.6474595,1921.9,1921.5,13.01059]
[1688198285976,8.20323,1921.9,1921.5,13.01059]
[1688198289490,3.0,1921.9,1921.5,13.01059]
[1688198289819,3.0,1921.9,1921.5,14.38005147]
[1688198290009,3.0,1922.1,1921.6,2.68752184]
[1688198290191,7.599698,1922.3,1921.6,2.68752184]
[1688198290192,3.0,1922.2,1921.7,13.48897]
[1688198290403,8.20239,1922.2,1921.7,15.10661918]
[1688198290920,13.40478,1922.2,1921.7,15.10661918]
[1688198291127,13.40478,1922.2,1921.7,10.88718]
[1688198291808,8.20239,1922.2,1921.7,13.48904]
[1688198292600,13.40476,1922.2,1921.7,13.48904]
[1688198293122,8.20237,1922.2,1921.7,13.48904]
[1688198294345,13.40474,1922.2,1921.7,13.48904]
[1688198294495,13.40474,1922.2,1921.7,14.973444]
[1688198295318,8.20237,1922.2,1921.7,14.973444]
[1688198296429,13.40474,1922.2,1921.7,14.973444]
[1688198299223,8.20237,1922.2,1921.7,14.973444]
[1688198300228,13.40474,1922.2,1921.7,14.973444]
[1688198303725,8.20238,1922.2,1921.8,1.4973444]
[1688198304052,8.20238,1922.2,1921.9,5.20313]
[1688198309320,13.40476,1922.2,1921.9,5.20313]
[1688198309520,13.40476,1922.2,1921.8,10.40664]
[1688198312761,16.00594,1922.2,1921.8,10.40664]
[1688198313557,16.00594,1922.2,1921.8,11.75713598]
[1688198314433,16.00594,1922.2,1921.8,10.40664]
[1688198317269,18.07234,1922.2,1921.8,10.40664]
[1688198328147,18.07234,1922.2,1921.8,5.20329]
[1688198340594,2.7648,1922.3,1921.8,15.69598184]
[1688198340904,2.7648,1922.3,1921.9,0.48]
[1688198341092,2.7648,1922.3,1922.0,10.4057]
[1688198341295,7.9669,1922.3,1922.0,5.20285]
[1688198343012,10.5669,1922.3,1922.0,5.20285]
[1688198343879,10.5669,1922.3,1922.0,10.40576]
[1688198345384,10.5669,1922.3,1922.0,5.20285]
[1688198345385,15.769,1922.3,1922.0,5.20285]
[1688198347277,17.956893,1922.3,1922.0,5.20285]
[1688198349796,17.956893,1922.3,1922.0,10.40576]
[1688198351934,20.557943,1922.3,1921.7,5.2036]
[1688198352137,10.40554,1922.1,1921.7,5.20351]
[1688198352297,3.665554,1922.0,1921.7,5.20351]
[1688198352479,3.665554,1922.0,1921.6,5.20382]
[1688198352480,14.071604,1922.0,1921.6,10.40767]
[1688198352818,14.071604,1922.0,1921.6,10.40781]
[1688198353008,13.03105,1922.0,1921.6,10.40781]
[1688198353209,13.03105,1922.0,1921.7,0.48]
[1688198353405,13.03105,1922.0,1921.7,5.68368]
[1688198354128,15.6325,1922.0,1921.7,5.68368]
[1688198358420,15.6325,1922.0,1921.7,0.48]
[1688198361307,17.33135,1922.0,1921.6,5.20382]
[1688198361695,17.33135,1922.0,1921.5,10.42481147]
[1688198361900,19.41795,1922.0,1921.6,5.20399]
[1688198362097,19.41795,1922.0,1921.5,10.42477147]
[1688198366044,17.7191,1922.0,1921.5,10.42477147]
[1688198367202,19.0711,1922.0,1921.3,0.41569285]
[1688198367433,19.0711,1922.0,1921.5,5.20411]
[1688198367636,17.7191,1922.0,1921.5,5.20411]
[1688198367838,1.77191,1921.9,1921.5,5.20411]
[1688198368007,5.20346,1921.8,1921.5,10.40837]
[1688198368425,10.40696,1921.8,1921.5,10.40837]
[1688198370442,13.00868,1921.8,1921.5,5.20411]
[1688198371739,13.00868,1921.8,1921.5,5.20421]
[1688198378130,10.32838319,1922.0,1921.5,14.099457]
[1688198378329,9.91461,1922.0,1921.6,0.48]
[1688198378551,9.91461,1922.0,1921.7,10.40734]
[1688198379363,15.11772,1922.0,1921.7,10.40734]
[1688198379759,17.71772,1922.0,1921.7,10.40734]
[1688198380865,12.51461,1922.0,1921.7,10.40734]
[1688198381229,12.51461,1922.0,1921.8,0.48]
[1688198381230,10.42801,1922.0,1921.8,0.48]
[1688198381453,10.42801,1922.0,1921.8,5.68325]
[1688198382430,15.63092,1922.0,1921.8,5.68325]
[1688198384056,15.63092,1922.0,1921.8,0.48]